Cogmind - Beta 11.1 @@@ ROGUE MODE // 2022.05.03 @ 06:35:30 Player: Azken Zutik Result: Destroyed by G-50 Soldier with Heavy Laser Performance ------------- Evolutions (4) 2000 Regions Visited (21) 4200 Robots Destroyed (274) 1370 Value Destroyed (8629) 8629 Prototype IDs (45) 900 Alien Tech Used (0) 0 Bonus (3967) 3967 TOTAL SCORE: 21066 Bonus ------- High Alert Combat Kills 865 Follower Combat Kills 992 Entered Garrisons 400 Aligned with FarCom 300 Met Imprinter 300 Destroyed Z-Imprinter 1000 Triggered Deep Caves Wall 500 Exposed GOLEM Chamber 500 Friendly Fire -890 Cogmind --------- Core Integrity 0/850 Matter 300/300 Energy 51/100 System Corruption 19% Temperature Cool (27) Movement Walking (150) Location -6/Factory Parts ------- > --- POWER (2) -------- Assembled Flux Generator > --- PROPULSION (3) --- Assembled Alloy Leg Assembled Alloy Leg > --- UTILITY (8) ------ Experimental Targeting Computer Hacking Suite System Shield System Guard GOLEM Unit > --- WEAPON (2) ------- (None) > --- INVENTORY (5) ---- Improved Signal Interpreter GOLEM Unit Remote Datajack CR-A16's Pointy Stick Peak State ------------ > --- POWER ------------ Assembled Flux Generator > --- PROPULSION ------- Armored Leg Assembled Alloy Leg Assembled Alloy Leg > --- UTILITY ---------- Improved Cooling System Assembled Nanovents Assembled Nanovents Huge Storage Unit Assembled Biocell Array Assembled Alloy Armor GOLEM Unit > --- WEAPON ----------- Assembled Focal Cannon Assembled Focal Cannon > --- INVENTORY -------- Zionite Biocell Zionite Biocell Improved Signal Interpreter Surveybot 24 Scanner Surveybot 24 Chip System Mapper Mobile Assembly Unit GOLEM Unit GOLEM Unit GOLEM Unit GOLEM Unit GOLEM Unit Smartbomb Launcher Remote Datajack RU-N14's Throwing Claymores CR-A16's Pointy Stick [Rating: 131] Favorites ----------- Power Reinforced Deuterium Engine Engine Reinforced Deuterium Engine Power Core Light Neutrino Core Reactor Assembled Flux Generator Propulsion Light Treads Treads Light Treads Leg Assembled Alloy Leg Wheel Compact Wheel Utility Huge Storage Unit Device Improved Heat Sink Storage Huge Storage Unit Processor Makeshift Salvage Targeting Computer Hackware System Shield Protection Hardened Medium Armor Plating Weapon Assembled Focal Cannon Energy Gun EM Pulse Gun Energy Cannon Assembled Focal Cannon Ballistic Gun Heavy Battle Rifle Launcher Grenade Launcher Special Weapon RU-N14's Throwing Claymores Impact Weapon Makeshift Hammer Slashing Weapon Great Axe Piercing Weapon CR-A16's Pointy Stick Special Melee Weapon Datajack Build | -11 -10 -10 -9 -9 -9 -8 -8 -8 -8 -8 -7 -7 -7 -7 -7 -7 -7 -6 -6 -6 -6 ------- Run | Scr Mat Min Mat Min Exi Min Mat Gar Mat Gar Fac Was Fac Low Low Zio Dee Pro Fac Was Fac Slots Evolved 8 | . . . 2 . . . 2 . . . 2 . . . . . . . 2 . . Power 1 | . . . . . . . . . . . . . . . . . . . 1 . . Propulsion 1 | . . . 1 . . . . . . . . . . . . . . . . . . Utility 6 | . . . 1 . . . 2 . . . 2 . . . . . . . 1 . . Weapon . | . . . . . . . . . . . . . . . . . . . . . . Parts Attached 255 | 2 6 8 10 10 25 . 5 5 57 11 8 14 . 2 4 10 47 2 5 4 20 Power 15 | . . 2 . 2 5 . . . 2 . . 2 . . . . 2 . . . . Engine 10 | . . 2 . 2 2 . . . 1 . . 1 . . . . 2 . . . . Core 1 | . . . . . 1 . . . . . . . . . . . . . . . . Reactor 4 | . . . . . 2 . . . 1 . . 1 . . . . . . . . . Propulsion 56 | 2 . 2 5 1 6 . 2 1 21 3 1 2 . . . . 3 2 1 . 4 Treads 47 | 2 . 1 5 1 6 . 2 1 21 3 1 2 . . . . 2 . . . . Leg 8 | . . . . . . . . . . . . . . . . . 1 2 1 . 4 Wheel 1 | . . 1 . . . . . . . . . . . . . . . . . . . Hover . | . . . . . . . . . . . . . . . . . . . . . . Flight . | . . . . . . . . . . . . . . . . . . . . . . Utility 99 | . 3 . 3 1 5 . 3 1 15 3 3 8 . 2 1 3 26 . 3 4 15 Device 43 | . . . 2 . 1 . 3 . 6 2 2 4 . 1 . 1 12 . 1 3 5 Storage 6 | . 2 . . . . . . . . . . . . . . . 3 . . . 1 Processor 6 | . . . . . 1 . . . . . 1 . . . . . . . . . 4 Hackware 2 | . . . . . . . . . . . . . . . . . . . . . 2 Protection 42 | . 1 . 1 1 3 . . 1 9 1 . 4 . 1 1 2 11 . 2 1 3 Artifact . | . . . . . . . . . . . . . . . . . . . . . . Weapon 85 | . 3 4 2 6 9 . . 3 19 5 4 2 . . 3 7 16 . 1 . 1 Energy Gun 4 | . 1 . . 1 2 . . . . . . . . . . . . . . . . Energy Cannon . | . . . . . . . . . . . . . . . . . . . . . . Ballistic Gun 45 | . . 3 2 2 4 . . 3 16 3 2 2 . . 1 3 4 . . . . Ballistic Cannon . | . . . . . . . . . . . . . . . . . . . . . . Launcher 12 | . 2 1 . 3 2 . . . 1 2 . . . . . 1 . . . . . Special Weapon 11 | . . . . . . . . . . . . . . . . 2 8 . 1 . . Impact Weapon 8 | . . . . . . . . . 2 . 1 . . . 2 1 2 . . . . Slashing Weapon 1 | . . . . . 1 . . . . . . . . . . . . . . . . Piercing Weapon 3 | . . . . . . . . . . . . . . . . . 2 . . . 1 Special Melee Weapon 1 | . . . . . . . . . . . 1 . . . . . . . . . . Unidentified Prototypes 10 | . . . . . 5 . . . . . . . . . . 1 3 . . . 1 Corrupted Parts 1 | . . . . . . . . . . . . . . . . . . 1 . . . System Corruption 10 | . . . . . . . . . . . . . . . . . . 10 . . . Parts Lost 54 | . 1 1 1 3 4 . . . 7 3 1 . . . . . 1 1 . 8 23 Power 4 | . . . . 1 . . . . . . . . . . . . . . . 1 2 Propulsion 11 | . . . 1 1 2 . . . 2 1 . . . . . . . . . 1 3 Utility 26 | . . . . 1 2 . . . 4 . 1 . . . . . 1 1 . 4 12 Weapon 13 | . 1 1 . . . . . . 1 2 . . . . . . . . . 2 6 Highest Loss Streak 8 | . 1 1 1 2 3 . . . 3 3 1 . . . . . 1 1 . 8 7 To Critical Strikes 5 | . . . . . 2 . . . . . . . . . . . . . . 2 1 Average Slot Usage (%) 90 | . 98 100 99 99 99 88 90 98 99 99 74 91 92 92 91 91 81 91 85 77 70 Engine 6 | . 14 14 11 10 8 . . . 2 9 7 6 7 7 7 7 6 7 . . . Reactor 1 | . . . . . 2 11 9 9 6 . . . . . . . . . 5 5 5 Treads 16 | . 28 25 32 33 33 33 27 27 26 26 23 17 15 15 15 15 8 . . . . Leg 5 | . . . . . . . . . . . . . . . . . 9 23 20 16 15 Device 14 | . . . 11 11 5 . 18 9 13 13 10 28 30 24 23 15 15 14 13 22 19 Storage 9 | . 14 14 11 11 11 11 9 9 9 9 7 7 7 7 7 7 11 15 13 10 6 Processor 1 | . . . . . 2 11 9 9 9 4 3 . . . . . . . . . 5 Protection 15 | . 13 14 10 10 14 11 9 17 13 18 5 14 15 21 23 29 14 15 19 10 5 Energy Cannon 3 | . . . . . . . . . . . . . . . . . 5 15 12 9 10 Ballistic Gun 9 | . . 26 22 12 15 . . 15 17 13 11 15 15 15 10 9 4 . . . . Launcher 1 | . 12 . . 9 5 . . . . 4 1 . . . . . . . . . . Impact Weapon 1 | . . . . . . . . . . . . . . . 3 4 1 . . . . Naked Turns 75 | . . . . . . . . . . . . . . . . . . . . . 75 Heaviest Build 205 | 14 93 94 97 98 108 105 111 113 116 119 182 128 128 138 138 142 205 141 174 174 124 Greatest Support 98 | 40 40 40 60 60 60 60 60 60 65 60 68 98 98 98 98 98 98 75 75 80 97 Greatest Overweight (x) 5 | . 2 5 1 1 1 1 1 1 1 1 2 1 1 1 1 1 2 1 2 2 3 Average Overweight (x) 1 | . 1 2 1 1 1 1 1 1 1 1 1 1 1 1 1 1 1 1 2 . . Largest Inventory Capacity 25 | 8 25 25 25 25 25 25 25 25 25 25 25 25 25 25 25 25 25 25 25 25 20 Average Capacity 23 | 8 20 25 25 25 25 25 25 25 25 25 25 25 25 25 25 25 25 25 25 18 7 Most Carried 25 | 6 16 24 25 25 25 25 25 25 25 24 23 25 25 25 25 25 25 25 25 25 10 Average Carried 21 | 3 9 22 24 24 20 24 24 24 24 20 20 24 24 24 24 24 23 24 24 18 4 Final Capacity 25 | 8 25 25 25 25 25 25 25 25 25 25 25 25 25 25 25 25 25 25 25 5 5 Final Carried 25 | 2 16 24 25 25 25 25 25 25 24 19 21 25 25 25 25 25 25 25 25 5 5 Class Distribution -------------------- 69% | Mutant 21% | Scavenger-Mutant 9% | Golem Dominant Class ---------------- Mutant | -10/Materials Mutant | -10/Mines Scavenger-Mutant | -9/Materials Mutant | -9/Mines Mutant | -9/Exiles Scavenger-Mutant | -8/Mines Scavenger-Mutant | -8/Materials Scavenger-Mutant | -8/Garrison Scavenger-Mutant | -8/Materials Scavenger-Mutant | -8/Garrison Mutant | -7/Factory Mutant | -7/Waste Mutant | -7/Factory Mutant | -7/Lower Caves Mutant | -7/Lower Caves Mutant | -7/Zion Mutant | -7/Deep Caves Mutant | -6/Proximity Caves Golem | -6/Factory Golem | -6/Waste Mutant | -6/Factory Resources | -11 -10 -10 -9 -9 -9 -8 -8 -8 -8 -8 -7 -7 -7 -7 -7 -7 -7 -6 -6 -6 -6 ----------- Run | Scr Mat Min Mat Min Exi Min Mat Gar Mat Gar Fac Was Fac Low Low Zio Dee Pro Fac Was Fac Matter Collected 6526 | 200 92 348 464 346 687 10 40 147 1996 223 120 365 . 48 112 65 609 108 71 63 412 Remotely . | . . . . . . . . . . . . . . . . . . . . . . Salvage Created 15384 | . 305 601 918 325 579 78 179 334 2864 313 120 . . 147 195 . 2379 1337 768 1310 2632 Parts 770 | . 29 20 69 23 72 5 8 29 202 13 6 . . 9 9 . 23 41 48 22 142 Haulers Intercepted 12 | . 1 . 3 . . . . . 5 . . . . . . . . . . . 3 Recyclers Shooed 13 | . . 2 4 2 . . . . 2 . . . . . . . . . . . 3 Parts Field Recycled . | . . . . . . . . . . . . . . . . . . . . . . Retrieved Matter . | . . . . . . . . . . . . . . . . . . . . . . Parts Self-Destructed 88 | . . . . . . . . . . . . . . 42 9 . . 37 . . . Prevented 4 | . . . . . . . . . . . . . . . . . . 4 . . . Kills | -11 -10 -10 -9 -9 -9 -8 -8 -8 -8 -8 -7 -7 -7 -7 -7 -7 -7 -6 -6 -6 -6 ------- Run | Scr Mat Min Mat Min Exi Min Mat Gar Mat Gar Fac Was Fac Low Low Zio Dee Pro Fac Was Fac Combat Hostiles Destroyed 223 | . 13 4 19 19 4 4 3 10 40 10 1 . . 3 4 . 23 15 12 5 34 Melee 4 | . . . . . . . . . . . . . . . . . 4 . . . . Guns 89 | . 1 2 19 3 1 4 3 10 34 3 1 . . 3 4 . 1 . . . . Cannons 76 | . . . . . . . . . . . . . . . . . 11 15 12 5 33 AOE 53 | . 12 2 . 16 3 . . . 6 7 . . . . . . 6 . . . 1 Classes Destroyed 25 | . 5 1 2 2 2 . . . 6 . 1 . . . . . 3 1 . 1 1 Worker 16 | . 2 1 4 2 . . . . 5 . . . . . . . . . 1 . 1 Builder 9 | . 1 . . 3 . . . . 3 . . . . . . . . . . . 2 Tunneler 3 | . . . . . . . . . 1 . . . . . . . . . . . 2 Hauler 12 | . 1 . 3 . . . . . 5 . . . . . . . . . . . 3 Recycler 17 | . . 4 1 3 . . . . 4 . 1 . . . . . . . . . 4 Minesweeper 1 | . . . . . . . . . . . . . . . . . . 1 . . . Mechanic 1 | . . . . . . . . . 1 . . . . . . . . . . . . Operator 3 | . . . . . . . . . 2 . . . . . . . . . . . 1 Turret 1 | . . . . . 1 . . . . . . . . . . . . . . . . Watcher 8 | . . . 2 . . . . . 1 . . . . . . . . . 1 . 4 Swarmer 46 | . 6 . 8 4 . 4 . 6 3 . . . . . . . . 2 1 . 12 Grunt 75 | . 7 4 8 1 . . 1 3 23 8 . . . 2 2 . . 9 3 . 4 Brawler 2 | . . . . . . . . . 1 . . . . . . . . . 1 . . Duelist 7 | . . . . . . . . . 5 . . . . . 1 . . 1 . . . Sentry 23 | . . . 3 . . . 2 1 7 1 . . . . . . . 1 5 . 3 Demolisher 1 | . . . . 1 . . . . . . . . . . . . . . . . . Specialist 2 | . . . . . . . . . . . . . . . . . . . . . 2 Hunter 10 | . . . . . . . . . 1 1 . . . 1 1 . . 2 . . 4 Programmer 12 | . . . . . . . . . . . 1 . . . . . . . 2 . 9 Compactor 5 | . . . . . . . . . . . . . . . . . . . . 5 . Zionite 8 | . . . . . 8 . . . . . . . . . . . . . . . . Z-Technician 5 | . . . . . . . . . . . . . . . . . 5 . . . . Z-Light 7 | . . . . . . . . . . . . . . . . . 7 . . . . Assembler 2 | . . . . . . . . . . . . . . . . . 2 . . . . Assembled 17 | . . . . 13 3 . . . . . . . . . . . 1 . . . . Golem 14 | . . . . . . . . . . . . . . . . . 14 . . . . Best Kill Streak 11 | . 5 3 7 7 7 4 1 9 11 5 1 . . 2 2 . 5 7 3 3 6 Combat Bots Only 9 | . 3 2 6 4 3 4 1 9 6 5 1 . . 2 2 . 5 7 2 3 5 Max Kills in Single Turn 5 | . 3 1 2 5 2 1 1 2 5 2 1 . . 1 1 . 2 1 1 1 1 Gunslinging . | . . . . . . . . . . . . . . . . . . . . . . Exploded 3 | . 3 1 . 3 2 . . . 1 2 . . . . . . 2 . . . 1 Melee 1 | . . . . . . . . . . . . . . . . . 1 . . . . Uniques/NPCs Destroyed 7 | . . 1 . . 4 1 . . . . . . . . . . 1 . . . . YI-UF0 (-10/Mines) 8R-AWN (-9/Exiles) EX-DEC (-9/Exiles) EX-HEX (-9/Exiles) EX-BIN (-9/Exiles) ME-RLN (-8/Mines) Z-Imprinter (-7/Deep Caves) Combat | -11 -10 -10 -9 -9 -9 -8 -8 -8 -8 -8 -7 -7 -7 -7 -7 -7 -7 -6 -6 -6 -6 -------- Run | Scr Mat Min Mat Min Exi Min Mat Gar Mat Gar Fac Was Fac Low Low Zio Dee Pro Fac Was Fac Damage Taken 16070 | . 152 246 700 495 839 136 91 314 3168 782 76 . . 83 332 . 1943 641 459 921 4692 Core 2012 | . 5 23 101 34 76 33 . 36 358 61 . . . 11 . . 372 44 40 . 818 Absorbed by Shields 1933 | . . . 70 151 79 . 25 127 756 251 28 . . 89 87 . 270 . . . . Regen/Repaired (Parts) 938 | . . . . . . . . . 132 . . . . . . 806 . . . . . Core Remaining (%) 56 | 100 . 88 . . . 39 . . . 17 . . . . . . . 39 . . . Volleys Fired 890 | . 17 43 85 34 54 . . 13 221 30 11 . . 7 18 1 110 42 52 41 111 Largest 2 | . 2 2 2 2 2 . . 2 2 2 2 . . 2 2 1 2 2 2 2 2 Hottest 80 | . 80 40 40 60 50 . . 53 55 53 48 . . 66 66 5 56 50 50 50 50 Shots Fired 1564 | . 19 66 170 46 100 22 15 31 425 45 21 . . 14 36 1 124 83 84 71 191 Gun 950 | . 6 63 170 24 86 22 15 31 412 30 20 . . 14 36 . 21 . . . . Cannon 512 | . . . . . . . . . . . . . . . . . 84 83 83 71 191 Launcher 81 | . 13 3 . 22 14 . . . 13 15 1 . . . . . . . . . . Special 21 | . . . . . . . . . . . . . . . . 1 19 . 1 . . Kinetic 866 | . . 46 170 22 69 . . 26 412 30 20 . . 14 36 . 21 . . . . Thermal 571 | . . . . . 17 22 15 5 . . . . . . . . 84 83 83 71 191 Explosive 96 | . 13 3 . 22 14 . . . 13 15 1 . . . . . 15 . . . . Electromagnetic 25 | . 6 17 . 2 . . . . . . . . . . . . . . . . . Robot Hit Streak 37 | . 5 7 18 13 23 4 6 6 15 9 6 . . 9 8 2 21 13 14 35 37 Robot Miss Streak 5 | . 1 3 5 1 2 4 1 2 3 2 4 . . 2 2 . 2 3 4 2 2 Penetration Max 2 | . . . . . 1 . . 1 2 . . . . . . . . . . . . Secondary Targets 11 | . . 1 . 1 . . . . 7 1 . . . . 1 . . . . . . Max Gunslinging Chain 1 | . . 1 . 1 . . . . 1 1 . . . . 1 . . . . . . Autonomous 60 | . . . . . 17 22 15 6 . . . . . . . . . . . . . Shots Hit Robots 1149 | . 5 37 118 21 77 12 13 23 299 33 14 . . 8 24 1 170 53 41 64 136 Core Hits 629 | . 31 23 45 42 44 7 4 13 128 28 3 . . 4 9 . 123 28 16 11 70 Critical Kills 15 | . . . 2 . 4 . . 5 3 . . . . . . . 1 . . . . Critical Parts Destroyed 30 | . . . 1 . 9 . . 3 10 2 . . . . . . 5 . . . . Critical Strikes 61 | . . . 3 . 14 . . 8 13 2 . . . . . . 21 . . . . Destroy 39 | . . . 3 . 13 . . 8 13 2 . . . . . . . . . . . Smash 6 | . . . . . . . . . . . . . . . . . 6 . . . . Sever 3 | . . . . . 1 . . . . . . . . . . . 2 . . . . Impale 13 | . . . . . . . . . . . . . . . . . 13 . . . . Melee Attacks 132 | . . . . . 21 . . . 4 . 3 . . . 1 1 98 . . . 4 Impact 42 | . . . . . . . . . 4 . 2 . . . 1 1 34 . . . . Slashing 21 | . . . . . 21 . . . . . . . . . . . . . . . . Piercing 68 | . . . . . . . . . . . . . . . . . 64 . . . 4 Sneak Attacks 6 | . . . . . . . . . . . 1 . . . . . 5 . . . . Combat Hostiles . | . . . . . . . . . . . . . . . . . . . . . . Follow-up Attacks 13 | . . . . . . . . . . . . . . . . . 13 . . . . Damage Inflicted 40573 | . 920 626 1413 1284 2205 326 381 500 5899 1130 215 . 5 133 473 . 10993 2430 1877 2938 6825 Guns 10427 | . 69 477 1325 216 1243 325 381 500 4436 323 215 . . 133 473 . 311 . . . . Cannons 16243 | . . . . . . . . . . . . . . . . . 2559 2430 1877 2938 6439 Explosions 6942 | . 847 146 84 996 376 . . . 1392 807 . . . . . . 2024 . . . 270 Melee 6317 | . . . . . 586 . . . . . . . . . . . 5695 . . . 36 Ramming 240 | . 4 3 4 72 . 1 . . 71 . . . 5 . . . . . . . 80 Kinetic 8849 | . . 314 1325 193 746 . . 380 4436 323 215 . . 133 473 . 311 . . . . Thermal 18212 | . 83 . 84 . 497 325 381 120 436 . . . . . . . 2559 2430 1877 2938 6482 Explosive 5992 | . 687 146 . 996 376 . . . 956 807 . . . . . . 2024 . . . . Electromagnetic 559 | . 146 163 . 23 . . . . . . . . . . . . . . . . 227 Impact 1946 | . . . . . . . . . . . . . . . . . 1946 . . . . Slashing 990 | . . . . . 586 . . . . . . . . . . . 404 . . . . Piercing 3785 | . . . . . . . . . . . . . . . . . 3749 . . . 36 Highest Corruption 27 | . . . . . . 1 . . 2 2 . . . . . . . 10 1 25 27 Average Corruption 14 | . . . . . . 1 . . 2 2 . . . . . . . 10 1 11 24 Corruption Purged . | . . . . . . . . . . . . . . . . . . . . . . Corruption Blocked . | . . . . . . . . . . . . . . . . . . . . . . Effects 285 | . . . . . . 2 . . 16 6 . . . . . . . 71 5 12 173 Message Errors 71 | . . . . . . 1 . . 2 2 . . . . . . . 20 1 3 42 Matter Fused 60 | . . . . . . . . . 4 1 . . . . . . . 16 2 4 33 Heat Flow Errors 34 | . . . . . . . . . 2 1 . . . . . . . 9 1 2 19 Energy Discharges 36 | . . . . . . . . . 3 2 . . . . . . . 7 . 3 21 Parts Rejected 3 | . . . . . . . . . . . . . . . . . . . . . 3 Data Loss (minor) 41 | . . . . . . . . . 2 . . . . . . . . 13 . . 26 Data Loss (major) 15 | . . . . . . 1 . . 1 . . . . . . . . 4 . . 9 Misfires 8 | . . . . . . . . . . . . . . . . . . 1 . . 7 Alerts 4 | . . . . . . . . . 1 . . . . . . . . 1 1 . 1 Misdirections 5 | . . . . . . . . . . . . . . . . . . . . . 5 Weapon Failures 8 | . . . . . . . . . 1 . . . . . . . . . . . 7 Overload Shots . | . . . . . . . . . . . . . . . . . . . . . . Overflow Damage 3111 | . 5 . 44 36 17 . . . 156 5 . . . . . . 2008 199 88 . 553 Projectiles 937 | . . . . . . . . . . . . . . . . . 97 199 88 . 553 Explosions 315 | . 5 . 44 36 . . . . 156 5 . . . . . . 69 . . . . Melee 1859 | . . . . . 17 . . . . . . . . . . . 1842 . . . . Knockbacks 6 | . . . . 1 . . . . . . . . . . . . 4 . . . 1 Impact 6 | . . . . 1 . . . . . . . . . . . . 4 . . . 1 Kinetic . | . . . . . . . . . . . . . . . . . . . . . . Secondary . | . . . . . . . . . . . . . . . . . . . . . . Self-Inflicted Damage 425 | . 65 13 . 101 7 . . . 52 73 . . . . . . . . . . 114 Shots 14 | . 2 1 . 3 1 . . . 1 2 . . . . . . . . . . 4 Rammed 27 | . 2 1 . 6 . 1 . . 5 . . . 1 . . . . . . . 11 Targets Rammed 39 | . 2 1 2 8 . 1 . . 5 . . . 1 . . . . . . . 19 Kicked 8 | . . . . . . . . . . . . . . . . . . . . . 8 Crushed 4 | . . . 2 2 . . . . . . . . . . . . . . . . . Highest Temperature 347 | . 99 56 33 17 51 . 4 18 347 229 . . . 30 196 . 6 280 210 134 243 Average Temperature 70 | . 46 22 7 6 18 . 4 12 124 87 . . . 13 80 . 3 102 99 68 92 Received Heat Transfer 3568 | . 45 129 252 20 . . 61 86 1259 296 . . . . 116 . 323 261 147 . 573 Effects 8 | . . . . . . . . . 5 2 . . . . . . . 1 . . . Shutdowns 1 | . . . . . . . . . 1 . . . . . . . . . . . . Energy Bleed 2 | . . . . . . . . . 1 . . . . . . . . 1 . . . Interference 5 | . . . . . . . . . 3 2 . . . . . . . . . . . Siege Activations . | . . . . . . . . . . . . . . . . . . . . . . Robots Corrupted 2 | . . 1 . . . . . . . . . . . . . . . . . . 1 Combat Hostiles . | . . . . . . . . . . . . . . . . . . . . . . Parts Fried 15 | . . 3 . . . . . . . . . . . . . . 9 1 . . 2 Impact Corruptions 27 | . . . . . . . . . . . . . . . . . 27 . . . . Robots Melted . | . . . . . . . . . . . . . . . . . . . . . . Combat Hostiles . | . . . . . . . . . . . . . . . . . . . . . . Parts Melted 15 | . . . 1 . . 1 2 . . . . . . . . . . . 2 . 9 Heat Transferred 10365 | . 50 . 50 . 153 360 481 148 300 . . . . . . . 1475 1350 1025 1625 3348 Parts Sabotaged . | . . . . . . . . . . . . . . . . . . . . . . Parts Stolen . | . . . . . . . . . . . . . . . . . . . . . . Parts Stripped . | . . . . . . . . . . . . . . . . . . . . . . Power Chain Reactions 3 | . 1 . . . . . . . . . . . . . . . . . . . 2 Missiles Intercepted . | . . . . . . . . . . . . . . . . . . . . . . Alert | -11 -10 -10 -9 -9 -9 -8 -8 -8 -8 -8 -7 -7 -7 -7 -7 -7 -7 -6 -6 -6 -6 ------- Run | Scr Mat Min Mat Min Exi Min Mat Gar Mat Gar Fac Was Fac Low Low Zio Dee Pro Fac Was Fac Peak Influence 923 | . 475 190 261 384 . 243 205 488 923 923 484 8 182 . . . . . 253 72 764 Initial 599 | . . 101 . 72 . . 94 133 237 599 484 8 . . . . . . . 70 . Average 256 | . 254 44 137 157 . 104 145 377 588 816 198 3 110 . . . . . 105 33 301 Maximum Alert Level 3 | . 2 . 1 1 . 1 1 2 3 3 2 . . . . . . . 1 . 3 Low Security (%) 53 | 100 21 100 77 64 . 91 86 13 . . 64 100 100 . . . . . 91 100 37 Level 1 24 | . 66 . 22 35 . 8 13 46 27 . 30 . . . . . . . 8 . 34 Level 2 13 | . 11 . . . . . . 40 36 32 5 . . . . . . . . . 20 Level 3 8 | . . . . . . . . . 35 67 . . . . . . . . . . 7 Level 4 . | . . . . . . . . . . . . . . . . . . . . . . Level 5 . | . . . . . . . . . . . . . . . . . . . . . . High Security . | . . . . . . . . . . . . . . . . . . . . . . Max Security . | . . . . . . . . . . . . . . . . . . . . . . Squads Dispatched 34 | . 2 . 5 1 . . . . 8 . 2 . 1 . . . . . 1 . 14 Investigation 10 | . 2 . 2 1 . . . . 2 . . . . . . . . . . . 3 Extermination 9 | . . . . . . . . . . . 2 . . . . . . . 1 . 6 Reinforcement 14 | . . . 3 . . . . . 5 . . . 1 . . . . . . . 5 Assault 1 | . . . . . . . . . 1 . . . . . . . . . . . . Garrison . | . . . . . . . . . . . . . . . . . . . . . . Intercept . | . . . . . . . . . . . . . . . . . . . . . . Searches Triggered . | . . . . . . . . . . . . . . . . . . . . . . Construction Impeded 2 | . . . . . . . . . 2 . . . . . . . . . . . . Haulers Reinforced . | . . . . . . . . . . . . . . . . . . . . . . Active Scanning Responses . | . . . . . . . . . . . . . . . . . . . . . . Cargo Convoy Interrupts 1 | . . . . . . . . . . . . . . . . . . . . . 1 Stealth | -11 -10 -10 -9 -9 -9 -8 -8 -8 -8 -8 -7 -7 -7 -7 -7 -7 -7 -6 -6 -6 -6 --------- Run | Scr Mat Min Mat Min Exi Min Mat Gar Mat Gar Fac Was Fac Low Low Zio Dee Pro Fac Was Fac Distress Signals 13 | . 2 1 1 . . . . . 7 . . . . . . . . . 1 . 1 Communications Jammed . | . . . . . . . . . . . . . . . . . . . . . . Distress Signals . | . . . . . . . . . . . . . . . . . . . . . . Times Spotted 409 | . 16 4 27 21 43 8 3 14 62 10 1 . 1 12 4 . 52 16 22 9 84 Peak Tracking Total 30 | . 4 2 4 5 11 4 1 6 5 4 1 . 2 7 3 . 30 7 4 3 11 Tactical Retreats 34 | . . . 1 . 8 1 . 3 . . . . . 1 . . 3 1 4 2 10 Traps | -11 -10 -10 -9 -9 -9 -8 -8 -8 -8 -8 -7 -7 -7 -7 -7 -7 -7 -6 -6 -6 -6 ------- Run | Scr Mat Min Mat Min Exi Min Mat Gar Mat Gar Fac Was Fac Low Low Zio Dee Pro Fac Was Fac Traps Triggered 13 | . 1 . 1 . . . . 2 2 1 1 . 1 . . . . . 1 . 3 Indirectly 1 | . 1 . . . . . . . . . . . . . . . . . . . . Trap Hack Attempts . | . . . . . . . . . . . . . . . . . . . . . . Triggered . | . . . . . . . . . . . . . . . . . . . . . . Disarmed . | . . . . . . . . . . . . . . . . . . . . . . Reprogrammed . | . . . . . . . . . . . . . . . . . . . . . . Reused . | . . . . . . . . . . . . . . . . . . . . . . Traps Extracted . | . . . . . . . . . . . . . . . . . . . . . . Installed . | . . . . . . . . . . . . . . . . . . . . . . Triggered 5 | . . . . . . . . . . . . . . 1 . . . 4 . . . Exploded 3 | . . . . . 3 . . . . . . . . . . . . . . . . Machines | -11 -10 -10 -9 -9 -9 -8 -8 -8 -8 -8 -7 -7 -7 -7 -7 -7 -7 -6 -6 -6 -6 ---------- Run | Scr Mat Min Mat Min Exi Min Mat Gar Mat Gar Fac Was Fac Low Low Zio Dee Pro Fac Was Fac Machines Disabled 47 | . 7 . 1 2 13 1 . . 8 . . . . . . . 3 2 2 . 8 Max in Single Turn 4 | . 2 . 1 1 2 . . . 1 . . . . . . . 1 1 1 . 4 Machines Sabotaged . | . . . . . . . . . . . . . . . . . . . . . . Garrisons Compromised . | . . . . . . . . . . . . . . . . . . . . . . Overloaded Fab Kills . | . . . . . . . . . . . . . . . . . . . . . . Hacking | -11 -10 -10 -9 -9 -9 -8 -8 -8 -8 -8 -7 -7 -7 -7 -7 -7 -7 -6 -6 -6 -6 --------- Run | Scr Mat Min Mat Min Exi Min Mat Gar Mat Gar Fac Was Fac Low Low Zio Dee Pro Fac Was Fac Machines Accessed 35 | . 1 . 2 1 2 . 1 . 7 . 1 . 2 1 2 . . 1 8 . 6 Terminals 23 | . . . 2 . . . . . 4 . 1 . 2 . . . . 1 7 . 6 Fabricators . | . . . . . . . . . . . . . . . . . . . . . . Repair Stations 2 | . . . . . . . . . 1 . . . . . . . . . 1 . . Recycling Units 2 | . 1 . . . . . . . 1 . . . . . . . . . . . . Scanalyzers . | . . . . . . . . . . . . . . . . . . . . . . Garrison Access 2 | . . . . . . . 1 . 1 . . . . . . . . . . . . Total Hacks 66 | . 1 . 3 1 2 . 1 . 16 . 6 . 5 1 2 . . 2 12 . 14 Successful 32 | . 1 . 1 1 2 . 1 . 11 . 2 . 2 1 2 . . 2 4 . 2 Failed 34 | . . . 2 . . . . . 5 . 4 . 3 . . . . . 8 . 12 Catastrophic 12 | . . . 1 . . . . . 1 . . . 1 . . . . . 4 . 5 Database Lockouts . | . . . . . . . . . . . . . . . . . . . . . . Manual 43 | . 1 . 3 . 1 . . . 10 . 4 . 3 . . 4 . . 8 . 9 Terminals 50 | . . . 3 . . . . . 9 . 6 . 5 . . . . 2 11 . 14 Fabricators . | . . . . . . . . . . . . . . . . . . . . . . Repair Stations 5 | . . . . . . . . . 4 . . . . . . . . . 1 . . Recycling Units 3 | . 1 . . . . . . . 2 . . . . . . . . . . . . Scanalyzers . | . . . . . . . . . . . . . . . . . . . . . . Garrison Access 2 | . . . . . . . 1 . 1 . . . . . . . . . . . . Terminal Hacks 14 | . . . 1 1 2 . . . 2 . 1 . 1 1 2 . . 2 1 . . Record 3 | . . . . . 1 . . . . . . . . . . . . 2 . . . Open Door 4 | . . . . 1 . . . . . . . . . 1 2 . . . . . . Branch Access Points 2 | . . . 1 . . . . . . . . . 1 . . . . . . . . Unreport Threat 1 | . . . . . . . . . . . 1 . . . . . . . . . . Hauler Manifests 1 | . . . . . . . . . . . . . . . . . . . 1 . . Zone Layout 2 | . . . . . . . . . 2 . . . . . . . . . . . . EX-Prototype ID Bank 1 | . . . . . 1 . . . . . . . . . . . . . . . . Fabricator Hacks . | . . . . . . . . . . . . . . . . . . . . . . Repair Station Hacks 4 | . . . . . . . . . 4 . . . . . . . . . . . . Scan Component 2 | . . . . . . . . . 2 . . . . . . . . . . . . Repair 2 | . . . . . . . . . 2 . . . . . . . . . . . . Recycling Unit Hacks . | . . . . . . . . . . . . . . . . . . . . . . Scanalyzer . | . . . . . . . . . . . . . . . . . . . . . . Garrison Access Hacks 2 | . . . . . . . 1 . 1 . . . . . . . . . . . . Unlock Access 2 | . . . . . . . 1 . 1 . . . . . . . . . . . . Unauthorized Hacks 12 | . 1 . . . . . . . 4 . 1 . 1 . . . . . 3 . 2 Terminals 10 | . . . . . . . . . 3 . 1 . 1 . . . . . 3 . 2 Botnet 10 | . . . . . . . . . 3 . 1 . 1 . . . . . 3 . 2 Fabricators . | . . . . . . . . . . . . . . . . . . . . . . Repair Stations . | . . . . . . . . . . . . . . . . . . . . . . Recycling Units 2 | . 1 . . . . . . . 1 . . . . . . . . . . . . Tunnel 2 | . 1 . . . . . . . 1 . . . . . . . . . . . . Scanalyzers . | . . . . . . . . . . . . . . . . . . . . . . Garrison Access . | . . . . . . . . . . . . . . . . . . . . . . Data Cores Recovered . | . . . . . . . . . . . . . . . . . . . . . . Used . | . . . . . . . . . . . . . . . . . . . . . . Hacking Detections 25 | . . . 1 . . . 1 . 6 . 1 . 2 . . . . . 8 . 6 Full Trace Events 3 | . . . 1 . . . . . . . . . . . . . . . . . 2 Feedback Events . | . . . . . . . . . . . . . . . . . . . . . . Feedback Blocked . | . . . . . . . . . . . . . . . . . . . . . . Robot Schematics Acquired 2 | . . . . . . . . . . . . . . . . 2 . . . . . Robots Built . | . . . . . . . . . . . . . . . . . . . . . . Authchips . | . . . . . . . . . . . . . . . . . . . . . . Time . | . . . . . . . . . . . . . . . . . . . . . . Total Robot Build Rating . | . . . . . . . . . . . . . . . . . . . . . . Part Schematics Acquired 15 | . . . . . . . . . . . . . . . . 15 . . . . . Parts Built . | . . . . . . . . . . . . . . . . . . . . . . Authchips . | . . . . . . . . . . . . . . . . . . . . . . Time . | . . . . . . . . . . . . . . . . . . . . . . Total Part Build Rating . | . . . . . . . . . . . . . . . . . . . . . . Parts Repaired 2 | . . . . . . . . . 2 . . . . . . . . . . . . Time 124 | . . . . . . . . . 124 . . . . . . . . . . . . Parts Recycled . | . . . . . . . . . . . . . . . . . . . . . . Recycled Matter . | . . . . . . . . . . . . . . . . . . . . . . Retrieved Matter . | . . . . . . . . . . . . . . . . . . . . . . Retrieved Components . | . . . . . . . . . . . . . . . . . . . . . . Parts Scanalyzed . | . . . . . . . . . . . . . . . . . . . . . . Part Schematics Acquired . | . . . . . . . . . . . . . . . . . . . . . . Parts Damaged . | . . . . . . . . . . . . . . . . . . . . . . Bothacking | -11 -10 -10 -9 -9 -9 -8 -8 -8 -8 -8 -7 -7 -7 -7 -7 -7 -7 -6 -6 -6 -6 ------------ Run | Scr Mat Min Mat Min Exi Min Mat Gar Mat Gar Fac Was Fac Low Low Zio Dee Pro Fac Was Fac Used RIF Installer . | . . . . . . . . . . . . . . . . . . . . . . Robots Hacked 4 | . . . . . . . . . . . 1 . . . . 1 1 . 1 . . Non-combat 3 | . . . . . . . . . . . 1 . . . . . 1 . 1 . . Combat 1 | . . . . . . . . . . . . . . . . 1 . . . . . Robot Hacks Applied 4 | . . . . . . . . . . . 1 . . . . 1 1 . 1 . . parse_system 2 | . . . . . . . . . . . . . . . . 1 1 . . . . find_chute 2 | . . . . . . . . . . . 1 . . . . . . . 1 . . Relay Couplers Released . | . . . . . . . . . . . . . . . . . . . . . . Fabnet Peak Effective % . | . . . . . . . . . . . . . . . . . . . . . . Robots Rewired 2 | . . . . . . . . . . . . . . 2 . . . . . . . Allies Hacked . | . . . . . . . . . . . . . . . . . . . . . . Hacks Repelled . | . . . . . . . . . . . . . . . . . . . . . . Allies | -11 -10 -10 -9 -9 -9 -8 -8 -8 -8 -8 -7 -7 -7 -7 -7 -7 -7 -6 -6 -6 -6 -------- Run | Scr Mat Min Mat Min Exi Min Mat Gar Mat Gar Fac Was Fac Low Low Zio Dee Pro Fac Was Fac Total Allies 27 | . . . . 4 . . . . . . . 20 . 2 . . . . . 1 . Largest Group 20 | . . . . 3 3 . . . . . . 20 20 19 . . . . . 1 . Highest-Rated Group 430 | . . . . 40 40 . . . . . . 430 430 410 . . . . . 31 . Highest-Rated Ally 31 | . . . . 31 16 . . . . . . 31 31 31 . . . . . 31 . Total Orders 12 | . . . . . 1 . . . . . . . . . . . 11 . . . . STAY 1 | . . . . . 1 . . . . . . . . . . . . . . . . RETURN 11 | . . . . . . . . . . . . . . . . . 11 . . . . Ally Attacks 579 | . . . . 2 8 14 . . . . . . 59 82 . . 405 . . 9 . Total Damage 9472 | . . . . 42 18 632 . . . . . . 698 1451 . . 6487 . . 144 . Kills 37 | . . . . . 1 4 . . . . . . 6 13 . . 13 . . . . Allies Corrupted 2 | . . . . . . . . . . . . . . 2 . . . . . . . Allies Melted . | . . . . . . . . . . . . . . . . . . . . . . Turrets Deployed 1 | . . . . . . 1 . . . . . . . . . . . . . . . Intel | -11 -10 -10 -9 -9 -9 -8 -8 -8 -8 -8 -7 -7 -7 -7 -7 -7 -7 -6 -6 -6 -6 ------- Run | Scr Mat Min Mat Min Exi Min Mat Gar Mat Gar Fac Was Fac Low Low Zio Dee Pro Fac Was Fac Robot Analysis Total . | . . . . . . . . . . . . . . . . . . . . . . Derelict Logs Recovered 11 | . . 2 . 2 . . . . . . . . . 3 1 2 . 1 . . . Drone Launches 46 | . . . . . . . . . . . . . . . . . 46 . . . . Drone Recoveries 36 | . . . . . . . . . . . . . . . . . 36 . . . . Exploration | -11 -10 -10 -9 -9 -9 -8 -8 -8 -8 -8 -7 -7 -7 -7 -7 -7 -7 -6 -6 -6 -6 ------------- Run | Scr Mat Min Mat Min Exi Min Mat Gar Mat Gar Fac Was Fac Low Low Zio Dee Pro Fac Was Fac Turns Passed 40747 | 6 1050 2105 1248 2100 2949 331 263 748 3183 397 1113 811 449 2737 3689 3344 5860 2835 1575 316 3638 Spaces Moved 14927 | 2 383 660 406 811 1083 109 99 283 898 123 243 320 180 1116 1509 1381 1731 1103 567 103 1817 Core 359 | . . . . . . . . . . . . . . . . . . . . . 359 Treads 10675 | 2 383 552 406 811 1083 109 99 283 898 123 243 320 180 1116 1509 1381 1177 . . . . Legs 3785 | . . . . . . . . . . . . . . . . . 554 1103 567 103 1458 Wheels 108 | . . 108 . . . . . . . . . . . . . . . . . . . Hover . | . . . . . . . . . . . . . . . . . . . . . . Flight . | . . . . . . . . . . . . . . . . . . . . . . Fastest Speed 50 | 160 160 175 240 240 240 240 240 240 235 240 240 240 240 240 240 240 180 183 210 150 50 Average Speed 224 | 160 256 296 240 240 240 240 240 240 238 240 257 240 240 240 240 240 226 183 210 173 144 Slowest Speed 320 | 160 320 320 240 240 240 240 240 240 240 240 320 240 240 240 240 240 240 183 226 210 240 Overloaded Moves . | . . . . . . . . . . . . . . . . . . . . . . Propulsion Burnouts . | . . . . . . . . . . . . . . . . . . . . . . Robots Hopped . | . . . . . . . . . . . . . . . . . . . . . . Cave-ins Triggered . | . . . . . . . . . . . . . . . . . . . . . . Exploration Rate (%) 59 | 2 53 98 44 99 90 25 10 57 75 34 6 93 7 97 98 87 88 97 16 91 50 Regions Visited 21 Branch Regions 9 Pre-discovered Areas 8 | . 1 2 . 1 1 . . . 1 . . . . 1 . 1 . . . . . Known Exits Taken 7 | . . 1 1 . . . 1 . 1 . . . 1 1 . . . 1 . . . Unknown Exits Taken 8 | 1 1 . . 1 1 1 . . . . . . . . 1 1 1 . . . . Scrap Searched 13 | . . 1 . 1 . . . . . . . . . 5 3 3 . . . . . Spaces Dug 36 | . . . . 14 . . . . 4 . 2 . . . 1 . 1 . 12 . 2 Terrain Destroyed 531 | . 42 20 5 142 25 10 . . 75 23 9 . . . 3 . 61 25 34 6 51 Melee 9 | . . . . . . . . . 4 . 2 . . . 1 . 1 . . . 1 Projectile 143 | . . . . . 5 10 . . 6 . . . . . 2 . 11 25 34 6 44 AOE 378 | . 42 20 5 142 20 . . . 64 23 7 . . . . . 49 . . . 6 Terrain Rammed . | . . . . . . . . . . . . . . . . . . . . . . Walls Destroyed . | . . . . . . . . . . . . . . . . . . . . . . Machines Disabled . | . . . . . . . . . . . . . . . . . . . . . . Actions | -11 -10 -10 -9 -9 -9 -8 -8 -8 -8 -8 -7 -7 -7 -7 -7 -7 -7 -6 -6 -6 -6 --------- Run | Scr Mat Min Mat Min Exi Min Mat Gar Mat Gar Fac Was Fac Low Low Zio Dee Pro Fac Was Fac Total 20563 | 7 430 742 524 908 1324 178 125 330 1509 178 708 375 197 1162 1541 1412 3403 1839 870 171 2630 Wait 3949 | . 8 17 9 39 86 67 13 23 276 11 430 8 10 21 1 . 1359 687 237 12 635 Move 14908 | 1 382 659 405 810 1082 108 99 280 898 122 243 319 179 1115 1508 1380 1730 1102 567 102 1817 Hop . | . . . . . . . . . . . . . . . . . . . . . . Pick Up 145 | . 14 10 5 4 22 1 4 2 13 . 8 12 1 1 3 11 20 2 1 3 8 Fast Attach 75 | . 1 3 2 1 5 . . . 17 . . 3 . 2 2 1 14 1 2 4 17 Attach 67 | 2 1 1 3 3 11 . 2 2 6 4 3 7 . . . 5 14 . . . 3 Detach 15 | . . . 1 . 2 . . . 1 . 1 1 . . . . 7 . 1 . 1 Swap 113 | . 4 4 5 6 9 . 3 3 34 7 5 4 . . 2 4 19 1 3 . . Drop 225 | 4 1 4 7 3 32 1 4 3 34 2 4 21 1 3 6 9 51 4 7 9 15 Fire 890 | . 17 43 85 34 54 . . 13 221 30 11 . . 7 18 1 110 42 52 41 111 Melee 112 | . . . . . 21 . . . 4 . 3 . . . 1 1 78 . . . 4 Ram 11 | . . . . . . . . . . . . . . . . . . . . . 11 Kick 8 | . . . . . . . . . . . . . . . . . . . . . 8 Crush 20 | . 2 1 2 8 . 1 . . 5 . . . 1 . . . . . . . . Escape Stasis 11 | . . . . . . . . 4 . 2 . . 5 . . . . . . . . Rewire 14 | . . . . . . . . . . . . . . 13 . . 1 . . . . Trap . | . . . . . . . . . . . . . . . . . . . . . . Miscellaneous . | . . . . . . . . . . . . . . . . . . . . . . Route ------- -11/Scrapyard -10/Materials (discovered 2 exits: *Mat / [*Min]) -10/Mines (discovered 2 exits: *Mat x2) -9/Materials (discovered 5 exits: *Mat x2 / *Min / *Sto x2) -9/Mines (discovered 4 exits: *Mat x2 / *Exi / *Zio) -9/Exiles -8/Mines -8/Materials -8/Garrison (discovered 3 exits: *Mat x3) -8/Materials (discovered 3 exits: *Fac x2 / Gar) -8/Garrison -7/Factory -7/Waste -7/Factory (discovered 2 exits: *Low x2) -7/Lower Caves -7/Lower Caves (discovered 2 exits: *Fac / *Zio) -7/Zion (discovered 2 exits: [*Dee] / [*Pro]) -7/Deep Caves -6/Proximity Caves -6/Factory (discovered 3 exits: Fac x2 / Low) -6/Waste -6/Factory (discovered 2 exits: *Fac x2) History --------- Turn | Location | Event 5 | -11/Scrapyard | Discovered new exit (range 1) 7 | -11/Scrapyard | Entered Materials 323 | -10/Materials | Build established: Mutant 560 | -10/Materials | Discovered new exit (range 12) 906 | -10/Materials | Discovered new exit (range 14) 1057 | -10/Materials | Entered Mines 1131 | -10/Mines | YI-UF0 nonchalantly dropped a Grenade Launcher on the ground 1132 | -10/Mines | Identified exit to Materials 1160 | -10/Mines | Destroyed YI-UF0 1392 | -10/Mines | Discovered exit to Materials (range 8) 1393 | -10/Mines | Learned location of Storage (-9) 1407 | -10/Mines | Joined a pair of Derelicts in attacking an 0b10 outpost 3162 | -10/Mines | Entered Materials 3162 | -9/Materials | Evolved 2 slots: Propulsion x1, Utility x1 3288 | -9/Materials | Discovered new exit (range 9) 3465 | -9/Materials | Build established: Scavenger-Mutant 3731 | -9/Materials | Identified exit to Mines 3731 | -9/Materials | Identified exit to Storage 3886 | -9/Materials | Discovered new exit (range 14) 4198 | -9/Materials | Discovered new exit (range 4) 4410 | -9/Materials | Entered Mines 4485 | -9/Mines | Received a Mining Laser from a helpful Derelict 4492 | -9/Mines | Discovered new exit (range 11) 4542 | -9/Mines | Assembled infested the area 4547 | -9/Mines | Assisted by a Guerilla fighting off Assembled 5053 | -9/Mines | Build established: Mutant 5079 | -9/Mines | Learned Materials emergency access door positions 5155 | -9/Mines | Met a Derelict shopkeep closing up shop 5656 | -9/Mines | A Derelict revealed a hidden shortcut to a safe place 5708 | -9/Mines | Discovered new exit (range 9) 6154 | -9/Mines | Assisted by bots powering up and referring to "LRC-V3" 6488 | -9/Mines | Deemed a non-threat by the Exiles lab entrance 6490 | -9/Mines | Discovered new exit (range 5) 6510 | -9/Mines | Entered Exiles 6510 | -9/Exiles | Accompanied by 3 allies 6594 | -9/Exiles | Met 8R-AWN 6645 | -9/Exiles | Met EX-HEX 6758 | -9/Exiles | Met EX-BIN 6798 | -9/Exiles | Aligned with FarCom system 6801 | -9/Exiles | Given EX-Vault access code 6878 | -9/Exiles | Opened EX-Vault 6906 | -9/Exiles | Found Army-in-a-Box 6912 | -9/Exiles | Found Trap Reconfigurator 6919 | -9/Exiles | Found AWS/Thermal 6975 | -9/Exiles | Warned to stay clear of 0b10 Research branches 7057 | -9/Exiles | Met EX-DEC 7078 | -9/Exiles | Learned location of Zion (-7) 7169 | -9/Exiles | Discovered new exit (range 14) 7824 | -9/Exiles | Attacked by the Exiles 7958 | -9/Exiles | Lost 3 parts (2n1u) 7980 | -9/Exiles | Core integrity fell below 50% 7995 | -9/Exiles | Destroyed 8R-AWN 8006 | -9/Exiles | Found Prototype Ballistic Gun 8007 | -9/Exiles | Identified 8R-AWN's Boregun 8024 | -9/Exiles | Found Prototype Device 8035 | -9/Exiles | Identified AS-neutralizer No. 17b 8453 | -9/Exiles | Destroyed EX-DEC 8468 | -9/Exiles | Destroyed EX-HEX 8475 | -9/Exiles | Build established: Scavenger-Mutant 8544 | -9/Exiles | Destroyed EX-BIN 8764 | -9/Exiles | Found Deploy-a-Sentry 9459 | -9/Exiles | Stole four prototypes: AWS/Thermal, Trap Reconfigurator, Army-in-a-Box, Deploy-a-Sentry 9459 | -9/Exiles | Entered Mines 9463 | -8/Mines | DAS Turret deployed 9521 | -8/Mines | ME-RLN came to Exiles' defense 9531 | -8/Mines | Allies destroyed ME-RLN 9561 | -8/Mines | Found Prototype Hackware 9749 | -8/Mines | Discovered new exit (range 10) 9790 | -8/Mines | Entered Materials 9790 | -8/Materials | Evolved 2 slots: Utility x2 10053 | -8/Materials | Identified exit to Garrison 10053 | -8/Materials | Entered Garrison 10160 | -8/Garrison | Triggered checkpoint 10214 | -8/Garrison | Destroyed 9 combat bots 10295 | -8/Garrison | Discovered new exit (range 12) 10327 | -8/Garrison | Attempted to access garrison exit controls, blocked by remote lockdown 10529 | -8/Garrison | Discovered new exit (range 12) 10563 | -8/Garrison | Attempted to access garrison exit controls, blocked by remote lockdown 10646 | -8/Garrison | Triggered checkpoint 10732 | -8/Garrison | Triggered checkpoint 10760 | -8/Garrison | Discovered new exit (range 15) 10801 | -8/Garrison | Entered Materials 11606 | -8/Materials | Repaired Imp. Shield Generator 11688 | -8/Materials | Repaired Cold Fusion Reactor 11932 | -8/Materials | Discovered new exit (range 17) 12379 | -8/Materials | Discovered new exit (range 15) 12801 | -8/Materials | First assault squad dispatched 12883 | -8/Materials | Lost 3 parts (1n2u) 13013 | -8/Materials | Core integrity fell below 50% 13984 | -8/Materials | Identified exit to Garrison 13984 | -8/Materials | Entered Garrison 14107 | -8/Garrison | Triggered checkpoint 14159 | -8/Garrison | Core integrity fell below 20% 14180 | -8/Garrison | Lost 3 parts (1n2w) 14228 | -8/Garrison | Triggered checkpoint 14335 | -8/Garrison | Discovered new exit (range 15) 14381 | -8/Garrison | Entered Factory 14381 | -7/Factory | Evolved 2 slots: Utility x2 15233 | -7/Factory | Build established: Mutant 15494 | -7/Factory | Sucked down chute 15494 | -7/Factory | Entered Waste 15495 | -7/Waste | Joined by Warlord forces that had cleared the area 15762 | -7/Waste | Found Damper Plating 16112 | -7/Waste | Found Damper Plating 16139 | -7/Waste | Discovered new exit (range 12) 16305 | -7/Waste | Entered Factory 16305 | -7/Factory | Accompanied by 20 allies 16488 | -7/Factory | Identified exit to Lower Caves 16754 | -7/Factory | Entered Lower Caves 16754 | -7/Lower Caves | Accompanied by 19 allies 16807 | -7/Lower Caves | Learned Factory stockpile data 16811 | -7/Lower Caves | Encountered a Warlord checkpoint 16858 | -7/Lower Caves | Identified exit to Lower Caves 17335 | -7/Lower Caves | Attracted the attention of an 0b10 outpost 19491 | -7/Lower Caves | Entered another Lower Caves area 21079 | -7/Lower Caves | Discovered new exit (range 16) 21932 | -7/Lower Caves | Discovered new exit (range 16) 22854 | -7/Lower Caves | Learned 12 Factory zone layouts 23180 | -7/Lower Caves | Entered Zion 23312 | -7/Zion | Acquired unknown access codes intercepted by a Zionite 23408 | -7/Zion | Found CR-A16's Pointy Stick 23435 | -7/Zion | Discovered new exit (range 13) 23745 | -7/Zion | Learned location of Armory (-4) 23867 | -7/Zion | Given A8's code to call for help 24325 | -7/Zion | Learned 4 Factory zone layouts 24452 | -7/Zion | Visited the Megawrench Repair Shop 25179 | -7/Zion | Learned Factory terminal intel 25492 | -7/Zion | Found Prototype Special Weapon 25492 | -7/Zion | Identified RU-N14's Throwing Claymores 25496 | -7/Zion | Found RU-N14's Throwing Claymores 25501 | -7/Zion | Found RU-N14's Throwing Claymores 25505 | -7/Zion | Found RU-N14's Throwing Claymores 26140 | -7/Zion | Opened final containment barrier to the Deep Caves 26188 | -7/Zion | Discovered new exit (range 5) 26193 | -7/Zion | Saw the warning signs outside the Deep Caves entrance 26374 | -7/Zion | Megawrench repaired 10 parts 26524 | -7/Zion | Entered Deep Caves 26764 | -7/Deep Caves | Found Surveybot 24 Chip 26770 | -7/Deep Caves | Found Surveybot 24 Scanner 27556 | -7/Deep Caves | Attacked by Z-Imprinter 27565 | -7/Deep Caves | Destroyed Z-Imprinter 27828 | -7/Deep Caves | Z-Facility disabled 27935 | -7/Deep Caves | Found Prototype Protection 27935 | -7/Deep Caves | Identified Zio. Heavy Carapace 28985 | -7/Deep Caves | Discovered new exit (range 10) 29192 | -7/Deep Caves | Spotted as-88177 29214 | -7/Deep Caves | Exposed GOLEM chamber 29233 | -7/Deep Caves | Core integrity fell below 50% 29244 | -7/Deep Caves | Allies destroyed as-88177 29274 | -7/Deep Caves | Triggered Deep Caves wall 29288 | -7/Deep Caves | Spotted AS-15104 29401 | -7/Deep Caves | Found GOLEM Unit 29405 | -7/Deep Caves | Spotted AS-87771 29444 | -7/Deep Caves | Destroyed AS-87771 29464 | -7/Deep Caves | Destroyed AS-15104 29491 | -7/Deep Caves | Spotted as-62037 30327 | -7/Deep Caves | Found Corrupted Mobile Assembly Unit 30486 | -7/Deep Caves | Found GOLEM Unit 30900 | -7/Deep Caves | Allies destroyed as-62037 30961 | -7/Deep Caves | Found GOLEM Unit 31497 | -7/Deep Caves | Found GOLEM Unit 31644 | -7/Deep Caves | Found GOLEM Unit 31873 | -7/Deep Caves | Found GOLEM Unit 31909 | -7/Deep Caves | Found GOLEM Unit 31916 | -7/Deep Caves | Found GOLEM Unit 31998 | -7/Deep Caves | Found GOLEM Unit 32384 | -7/Deep Caves | Entered Proximity Caves 32652 | -6/Proximity Caves | Identified exit to Factory 33197 | -6/Proximity Caves | System corruption reached 10% 33308 | -6/Proximity Caves | Attracted the attention of an 0b10 base 33373 | -6/Proximity Caves | Learned location of 1 exit from Factory 33375 | -6/Proximity Caves | Destroyed 7 combat bots 33999 | -6/Proximity Caves | Received a Behemoth hack from an annoying Tinkerer 35219 | -6/Proximity Caves | Entered Factory 35219 | -6/Factory | Evolved 2 slots: Power x1, Utility x1 35220 | -6/Factory | Identified exit to Factory 35221 | -6/Factory | Identified exit to Lower Caves 35223 | -6/Factory | Loaded intel: 26 terminal locations 35666 | -6/Factory | Build established: Golem 36794 | -6/Factory | Sucked down chute 36794 | -6/Factory | Entered Waste 36795 | -6/Waste | Met a frightened Derelict 36809 | -6/Waste | EMP discharged 36813 | -6/Waste | Spotted C-40 Crusher 36837 | -6/Waste | Crushed by Compactor (0 parts destroyed, 1 dropped) 36844 | -6/Waste | Destroyed C-40 Crusher 36901 | -6/Waste | Spotted C-40 Crusher 36909 | -6/Waste | EMP discharged 36909 | -6/Waste | System corruption reached 10% 36912 | -6/Waste | Destroyed C-40 Crusher 36925 | -6/Waste | Spotted C-40 Crusher 36928 | -6/Waste | Spotted C-40 Crusher 36940 | -6/Waste | Spotted C-40 Crusher 36946 | -6/Waste | Crushed by Compactor (1 part destroyed) 36947 | -6/Waste | Destroyed C-40 Crusher 36953 | -6/Waste | Destroyed C-40 Crusher 36967 | -6/Waste | Crushed by Compactor (0 parts destroyed, 1 dropped) 36970 | -6/Waste | Destroyed C-40 Crusher 36979 | -6/Waste | Crushed by Compactor (1 part destroyed) 37003 | -6/Waste | Crushed by Compactor (1 part destroyed) 37009 | -6/Waste | EMP discharged 37013 | -6/Waste | Spotted C-40 Crusher 37049 | -6/Waste | Lost 8 parts (1p1n4u2w) 37087 | -6/Waste | Discovered new exit (range 16) 37109 | -6/Waste | EMP discharged 37110 | -6/Waste | Entered Factory 37593 | -6/Factory | Build established: Mutant 37823 | -6/Factory | Discovered exit to Factory (range 10) 38277 | -6/Factory | Cargo convoy interrupted 38432 | -6/Factory | Released all parts (8) 38461 | -6/Factory | Lost 7 parts (3n2u2w) 38471 | -6/Factory | Core integrity fell below 50% 39055 | -6/Factory | Build established: Golem 39438 | -6/Factory | Discovered exit to Factory (range 15) 39584 | -6/Factory | Lost 5 parts (4u1w) 40230 | -6/Factory | Found Prototype Processor 40230 | -6/Factory | Identified Exp. Targeting Computer 40467 | -6/Factory | Core integrity fell below 20% 40517 | -6/Factory | Build established: Mutant 40748 | -6/Factory | Destroyed by G-50 Soldier with Heavy Laser Last Messages --------------- 40617_ R-10 Processor knocked back. 40617_ U-05 Engineer builds a Wall. 40659_ System corrupted: Heat flow error (+127). 40659_ O-24 Administrator destroyed. 40663_ Acquired System Shield. 40666_ Dropped Power Amplifier. 40667_ Acquired Unknown Hackware. 40667_ Identified Hacking Suite. 40669_ GOLEM Unit beginning Asb. Flux Generator integration. 40669_ Asb. Alloy Armor destroyed. 40674_ System corrupted: Substantial component data lost. 40680_ U-05 Engineer builds a Wall. 40690_ R-10 Processor collects Power Amplifier. 40693_ R-10 Processor collects Imp. Datajack. 40694_ ZFENU GP=SZAHZ|BHFHJ&|L6DPT|NJM/